bitfinex/quotes_BTCUSD_20251205
["timestamp","ask_amount","ask_price","bid_price","bid_amount"]
[1764940482463,0.38949518,91171.0,91150.0,0.23038931]
[1764940482665,0.38949518,91171.0,91151.0,0.0109708]
[1764940483112,0.38949518,91171.0,91170.0,0.00128138]
[1764940487321,0.42447557,91171.0,91170.0,0.00128138]
[1764940488302,0.38949518,91171.0,91170.0,0.00128138]
[1764940488893,0.2194399,91142.0,91140.0,0.0004]
[1764940489040,0.2194378,91142.0,91140.0,0.0004]
[1764940489247,0.2582502,91141.0,91140.0,0.0004]
[1764940490127,0.29119252,91141.0,91140.0,0.0004]
[1764940491296,0.31858543,91141.0,91140.0,0.0004]
[1764940491705,0.31958543,91141.0,91140.0,0.0004]
[1764940492320,0.07641523,91141.0,91140.0,0.0004]
[1764940492524,0.29785543,91141.0,91140.0,0.0004]
[1764940492747,0.29785543,91141.0,91140.0,0.02194041]
[1764940493988,0.03594232,91141.0,91140.0,0.02194041]
[1764940494597,0.03594232,91141.0,91140.0,0.24138302]
[1764940494807,0.03594232,91141.0,91140.0,0.24226483]
[1764940495856,0.03594232,91141.0,91140.0,0.22072442]
[1764940496058,0.03594232,91141.0,91140.0,0.24226483]
[1764940497216,0.03594232,91141.0,91140.0,0.22072442]
[1764940497745,0.03594232,91141.0,91140.0,0.24226483]
[1764940498172,0.03594232,91141.0,91140.0,0.02282222]
[1764940498364,0.03594232,91141.0,91140.0,0.24226483]
[1764940498870,0.03594232,91141.0,91140.0,0.02282222]
[1764940499270,0.03594232,91141.0,91140.0,0.24226483]
[1764940501968,0.29627252,91141.0,91140.0,0.00128181]
[1764940502262,0.32366543,91141.0,91140.0,0.00128181]
[1764940502464,0.03594232,91141.0,91140.0,0.22072442]
[1764940502734,0.03594232,91141.0,91140.0,0.28253483]
[1764940502889,0.03594232,91141.0,91140.0,0.29989483]
[1764940506002,0.03594232,91141.0,91140.0,0.08045222]
[1764940506204,0.29627252,91141.0,91140.0,0.00128181]
[1764940506451,0.32366543,91141.0,91140.0,0.00128181]
[1764940506853,0.05184232,91141.0,91140.0,0.00128181]
[1764940507074,0.27128252,91141.0,91140.0,0.02282222]
[1764940508546,0.03594232,91141.0,91140.0,0.02282222]
[1764940508752,0.25538252,91141.0,91140.0,0.02282222]
[1764940508964,0.25538252,91141.0,91140.0,0.0229417]
[1764940509417,0.2224402,91141.0,91140.0,0.0229417]
[1764940510317,0.003,91141.0,91140.0,0.00140129]
[1764940510553,0.2224402,91141.0,91140.0,0.00140129]
[1764940510901,0.003,91141.0,91140.0,0.00140129]
[1764940511086,0.2224402,91141.0,91140.0,0.00140129]
[1764940511717,0.003,91141.0,91140.0,0.00140129]
[1764940512320,0.003,91141.0,91140.0,0.2208439]
[1764940512669,0.003,91141.0,91140.0,0.28265431]
[1764940513295,0.003,91141.0,91140.0,0.2611139]
[1764940513521,0.003,91141.0,91140.0,0.28265431]
[1764940517740,0.003,91141.0,91140.0,0.24238431]
[1764940517924,0.003,91141.0,91140.0,0.2208439]
[1764940518126,0.003,91141.0,91140.0,0.2382039]
[1764940518358,0.003,91141.0,91140.0,0.0229417]
[1764940519129,0.003,91141.0,91140.0,0.00140129]
[1764940519130,0.2633302,91141.0,91140.0,0.00140129]
[1764940520522,0.2383402,91141.0,91140.0,0.00140129]
[1764940521678,0.0189,91141.0,91140.0,0.00140129]
[1764940521982,0.2383402,91141.0,91140.0,0.0229417]
[1764940523190,0.2224402,91141.0,91140.0,0.00140129]
[1764940523424,0.2224402,91141.0,91140.0,0.0229417]
[1764940523644,0.32746606,91141.0,91140.0,0.00140129]
[1764940524078,0.37777504,91141.0,91140.0,0.00140129]
[1764940524501,0.37677504,91141.0,91140.0,0.00140129]
[1764940524936,0.37777504,91141.0,91140.0,0.00140129]
[1764940525365,0.37677504,91141.0,91140.0,0.00140129]
[1764940525982,0.38277504,91141.0,91140.0,0.00340129]
[1764940528635,0.30289205,91141.0,91140.0,0.00340129]
[1764940529563,0.26200205,91141.0,91140.0,0.00340129]
[1764940529978,0.27807205,91141.0,91140.0,0.00340129]
[1764940530179,0.30293205,91141.0,91140.0,0.00340129]
[1764940530803,0.48719893,91141.0,91140.0,0.00340129]
[1764940531019,0.51080405,91141.0,91140.0,0.00340129]
[1764940531852,0.40642016,91141.0,91140.0,0.00340129]
[1764940532907,0.73965842,91141.0,91140.0,0.00340129]
[1764940533096,0.75178389,91141.0,91140.0,0.00340129]
[1764940533307,0.73965842,91141.0,91140.0,0.00340129]
[1764940533500,0.72942016,91141.0,91140.0,0.00340129]
[1764940533710,0.84936029,91141.0,91140.0,0.00340129]
[1764940533915,0.87096029,91141.0,91140.0,0.00340129]
[1764940534112,0.84936029,91141.0,91140.0,0.00340129]
[1764940534940,0.73965523,91141.0,91140.0,0.00340129]
[1764940535339,0.72942016,91141.0,91140.0,0.00340129]
[1764940535573,0.73965087,91141.0,91140.0,0.00340129]
[1764940536008,0.72942016,91141.0,91140.0,0.00340129]
[1764940540759,0.72942016,91141.0,91140.0,1.29e-06]
[1764940540965,0.21951246,91111.0,91110.0,0.0004]
[1764940541158,0.24691246,91111.0,91110.0,0.0004]
[1764940541299,0.27177246,91111.0,91110.0,0.0004]
[1764940541921,0.29916537,91111.0,91110.0,0.0004]
[1764940542138,0.33212296,91111.0,91110.0,0.0004]
[1764940542608,0.39464595,91111.0,91110.0,0.0004]
[1764940542738,0.39564595,91111.0,91110.0,0.0024]
[1764940542942,0.39464595,91111.0,91110.0,0.0004]
[1764940543145,0.39464595,91111.0,91110.0,0.0024]
[1764940543146,0.39764595,91111.0,91110.0,0.0024]
[1764940543767,0.39864595,91111.0,91110.0,0.0024]
[1764940544593,0.39864595,91111.0,91110.0,0.0004]
[1764940544594,0.39564595,91111.0,91110.0,0.0004]
[1764940544833,0.39964595,91111.0,91110.0,0.0004]
[1764940545280,0.28205954,91101.0,91100.0,0.0025]
[1764940545481,0.31548954,91101.0,91100.0,0.0025]
[1764940545657,0.34034954,91101.0,91100.0,0.0025]
[1764940546207,0.32298954,91101.0,91100.0,0.0025]
[1764940546448,0.34834954,91101.0,91100.0,0.0025]
[1764940547171,0.34834954,91101.0,91090.0,0.0004]
[1764940547172,0.60510775,91081.0,91080.0,0.0004]
[1764940547396,0.60510775,91081.0,91040.0,0.0004]
[1764940547397,0.28215598,91061.0,91040.0,0.0004]
[1764940547616,0.32233598,91061.0,91040.0,0.0004]
[1764940547738,0.37890611,91061.0,91040.0,0.0004]
[1764940548248,0.21968124,91041.0,91040.0,0.0004]
[1764940548466,0.24791124,91041.0,91040.0,0.0004]
[1764940548678,0.27150124,91041.0,91040.0,0.0004]
[1764940548881,0.27311411,91041.0,91040.0,0.0004]
[1764940549197,0.27311411,91041.0,91030.0,0.0004]
[1764940549198,0.01634,91040.0,91030.0,0.0004]
[1764940549436,0.31050836,91031.0,91030.0,0.0004]
[1764940549827,0.01098611,91024.0,91021.0,0.02154041]
[1764940550044,0.21972644,91023.0,91021.0,0.02154041]
[1764940550172,0.02359,91023.0,91017.0,0.09934389]
[1764940550375,0.01194,91031.0,91022.0,0.01098635]
[1764940550583,0.23070445,91026.0,91022.0,0.23071179]
[1764940550777,0.03837866,91027.0,91026.0,0.02154041]
[1764940551036,0.01098611,91024.0,91019.0,0.01098671]
[1764940551173,0.01098611,91024.0,91020.0,0.01098659]
[1764940551376,0.03457623,91023.0,91022.0,0.02154041]
[1764940551661,0.002,91026.0,91023.0,0.01098623]
[1764940551881,0.01298587,91026.0,91022.0,0.03252676]
[1764940552085,0.02154041,91025.0,91023.0,0.23071091]
[1764940552307,0.002,91024.0,91023.0,0.23071091]
[1764940552759,0.02154041,91025.0,91023.0,0.23071091]
[1764940553259,0.02154041,91025.0,91024.0,0.00341459]
[1764940553462,0.25760026,91025.0,91024.0,0.00341459]
[1764940553602,0.03788041,91025.0,91024.0,0.00341459]
[1764940553980,0.01098454,91037.0,91032.0,0.23068624]
[1764940554208,0.01098454,91037.0,91029.0,0.25223456]
[1764940554209,0.23067796,91036.0,91035.0,0.02154041]
[1764940554435,0.02233,91030.0,91025.0,0.01098599]
[1764940554636,0.01098575,91027.0,91024.0,0.02154041]
[1764940554812,0.23070317,91027.0,91024.0,0.02154041]
[1764940555014,0.23070077,91027.0,91024.0,0.02154041]
[1764940555237,0.002,91026.0,91024.0,0.02154041]
[1764940555591,0.002,91026.0,91025.0,0.21971985]
[1764940555820,0.01697538,91030.0,91026.0,0.2307015]
[1764940555992,0.01098551,91029.0,91026.0,0.01098587]
[1764940556213,0.21971985,91025.0,91024.0,0.02154041]
[1764940556383,0.23492843,91026.0,91024.0,0.02154041]
[1764940556584,0.01521,91025.0,91024.0,0.02154041]
[1764940556960,0.21973192,91020.0,91018.0,0.323]
[1764940557085,0.02694,91019.0,91018.0,0.323]
[1764940557751,0.02694,91019.0,91017.0,0.41135694]
[1764940557752,0.21973675,91018.0,91017.0,0.41135694]
[1764940557952,0.01173,91019.0,91017.0,0.08835694]
[1764940558256,0.23146516,91019.0,91018.0,0.02154041]
[1764940558411,0.0233,91018.0,91017.0,0.08835694]
[1764940558616,0.25824675,91018.0,91017.0,0.08835694]
[1764940559137,0.27764675,91018.0,91017.0,0.08835694]
[1764940559341,0.26024675,91018.0,91017.0,0.08835694]
[1764940559566,0.002,91018.0,91017.0,0.08835694]
[1764940559769,0.01098635,91022.0,91019.0,0.02154041]
[1764940560148,0.03298796,91023.0,91021.0,0.22323253]
[1764940560346,0.03298796,91023.0,91020.0,0.01098659]
[1764940560698,0.03298796,91023.0,91021.0,0.21972887]
[1764940561087,0.23068344,91034.0,91030.0,0.02154041]
[1764940561270,0.25268744,91032.0,91030.0,0.02154041]
[1764940561476,0.0064,91031.0,91030.0,0.02154041]
[1764940562093,0.03298386,91033.0,91031.0,0.21970537]
[1764940562309,0.004,91034.0,91030.0,0.01098538]
[1764940562508,0.03844674,91035.0,91032.0,0.23068774]
[1764940562835,0.01098418,91040.0,91036.0,0.01098466]
[1764940562986,0.01098442,91038.0,91033.0,0.2306854]
[1764940563193,0.0109843,91039.0,91035.0,0.23067998]
[1764940563389,0.03298104,91040.0,91036.0,0.23067618]
[1764940563589,0.26364965,91040.0,91036.0,0.01098466]
[1764940563794,0.01521,91037.0,91033.0,0.01098502]
[1764940564011,0.01098357,91045.0,91044.0,0.02154041]
[1764940564764,0.02739291,91059.0,91044.0,0.02154041]
[1764940564765,0.01098201,91058.0,91053.0,0.01098261]
[1764940564965,0.21964418,91057.0,91055.0,0.02154041]
[1764940565196,0.23060937,91064.0,91058.0,0.21964022]
[1764940565404,0.01098128,91064.0,91062.0,0.02154041]
[1764940565620,0.23060838,91064.0,91062.0,0.02154041]
[1764940566030,0.23060838,91064.0,91062.0,0.0219391]
[1764940566201,0.23060701,91065.0,91062.0,0.0219391]
[1764940566202,0.01098116,91065.0,91062.0,0.0219391]
[1764940566405,0.001,91064.0,91062.0,0.25254963]
[1764940566991,0.00671,91067.0,91064.0,0.23060595]
[1764940567605,0.03297067,91073.0,91072.0,0.02154041]
[1764940567827,0.01097959,91078.0,91077.0,0.02154041]
[1764940568034,0.0383725,91078.0,91077.0,0.02154041]
[1764940568631,0.01097959,91078.0,91077.0,0.02154041]
[1764940569118,0.004,91078.0,91077.0,0.001]
[1764940569606,0.004,91078.0,91077.0,0.02254041]
[1764940570254,0.004,91078.0,91077.0,0.06277041]
[1764940570898,0.004,91078.0,91077.0,0.00612]
[1764940571112,0.004,91078.0,91077.0,0.03351291]
[1764940571534,0.004,91078.0,91077.0,0.00612]
[1764940571734,0.004,91078.0,91077.0,0.02762397]
[1764940572965,0.004,91078.0,91077.0,0.03374397]
[1764940573183,0.004,91078.0,91077.0,0.00612]
[1764940573392,0.004,91078.0,91077.0,0.02150397]
[1764940573997,0.004,91078.0,91077.0,0.03890397]
[1764940574400,0.004,91078.0,91077.0,0.02150397]
[1764940574600,0.2195944,91077.0,91076.0,0.02150397]
[1764940574850,0.2313244,91077.0,91076.0,0.02150397]
[1764940575771,0.2313244,91077.0,91075.0,0.03890397]
[1764940576834,0.01173,91077.0,91075.0,0.03890397]
[1764940577049,0.23132513,91077.0,91075.0,0.03890397]
[1764940577248,0.23132513,91077.0,91076.0,0.00188284]
[1764940577454,0.26433091,91077.0,91076.0,0.00288284]
[1764940577683,0.248148,91077.0,91076.0,0.00188284]
[1764940577880,0.00161287,91077.0,91076.0,0.00188284]
[1764940578040,0.00561287,91077.0,91076.0,0.02338681]
[1764940578527,0.02855287,91077.0,91076.0,0.00188284]
[1764940578706,0.03655287,91077.0,91076.0,0.02438681]
[1764940578919,0.04325287,91077.0,91076.0,0.02438681]
[1764940579516,0.06655287,91077.0,91076.0,0.00288284]
[1764940579929,0.28614727,91077.0,91076.0,0.00288284]
[1764940581817,0.34867026,91077.0,91076.0,0.00288284]
[1764940583031,0.24763727,91077.0,91076.0,0.00288284]
[1764940583233,0.25111727,91077.0,91076.0,0.00288284]
[1764940583629,0.27441727,91077.0,91076.0,0.00288284]
[1764940586967,0.30181018,91077.0,91076.0,0.00288284]
[1764940587196,0.01631287,91077.0,91076.0,0.25010363]
[1764940587392,0.01631287,91077.0,91076.0,0.22859966]
[1764940587610,0.01631287,91077.0,91076.0,0.24398363]
[1764940587815,0.0147,91077.0,91076.0,0.24398363]
[1764940588019,0.0147,91077.0,91076.0,0.25010363]
[1764940588217,0.0147,91077.0,91076.0,0.25622363]
[1764940588607,0.0147,91077.0,91076.0,0.57922363]
[1764940588819,0.0147,91077.0,91076.0,1.38384063]
[1764940589405,0.0077,91077.0,91076.0,1.38284063]
[1764940589599,0.0067,91077.0,91076.0,0.96514563]
[1764940589825,0.0117,91077.0,91076.0,0.57922363]
[1764940590033,0.0117,91077.0,91076.0,0.57310363]
[1764940590198,0.0117,91077.0,91076.0,0.59050363]
[1764940590602,0.0117,91077.0,91076.0,0.24398363]
[1764940593887,0.27263727,91077.0,91076.0,0.00288284]
[1764940595087,0.24890727,91077.0,91076.0,0.00288284]
[1764940595424,0.23290727,91077.0,91076.0,0.02438681]
[1764940595984,0.01331287,91077.0,91076.0,0.24398363]
[1764940596189,0.0117,91077.0,91076.0,0.25010363]
[1764940596953,0.0117,91077.0,91076.0,0.24398363]
[1764940597403,0.0117,91077.0,91076.0,0.00288284]
[1764940597616,0.36260956,91077.0,91076.0,0.00288284]
[1764940597825,0.33516026,91077.0,91076.0,0.00288284]
[1764940598054,0.24890727,91077.0,91076.0,0.00288284]
[1764940598255,0.27263727,91077.0,91076.0,0.00288284]
[1764940599981,0.30003018,91077.0,91076.0,0.00288284]
[1764940600162,0.36255317,91077.0,91076.0,0.00288284]
[1764940601340,0.36355317,91077.0,91076.0,0.00288284]
[1764940601818,0.35855317,91077.0,91076.0,0.00188284]
[1764940602203,0.36555317,91077.0,91076.0,0.00288284]
[1764940608195,0.47468318,91077.0,91076.0,0.00288284]
[1764940608398,0.36555317,91077.0,91076.0,0.00288284]
[1764940608610,0.71212547,91077.0,91076.0,0.00288284]
[1764940608811,0.72235489,91077.0,91076.0,0.00288284]
[1764940609218,0.7518078,91077.0,91076.0,0.00288284]
[1764940609417,0.84204292,91077.0,91076.0,0.00288284]
[1764940609851,0.83904292,91077.0,91076.0,0.00188284]
[1764940610055,0.72933786,91077.0,91076.0,0.00188284]
[1764940610268,0.72533786,91077.0,91076.0,0.00188284]
[1764940610474,0.74273786,91077.0,91076.0,0.00188284]
[1764940611030,0.74673786,91077.0,91076.0,0.00188284]
[1764940611738,0.76573786,91077.0,91076.0,0.00188284]
[1764940611969,0.85644292,91077.0,91076.0,0.00188284]
[1764940612175,0.87644292,91077.0,91076.0,0.00188284]
[1764940612383,0.8662135,91077.0,91076.0,0.00188284]
[1764940614928,0.73910844,91077.0,91076.0,0.00188284]
[1764940615158,0.75650844,91077.0,91076.0,0.00188284]
[1764940615528,0.73910844,91077.0,91076.0,0.00188284]
[1764940615674,0.75650844,91077.0,91076.0,0.00188284]
[1764940616279,0.73910844,91077.0,91076.0,0.00188284]
[1764940616688,0.75650844,91077.0,91076.0,0.00188284]
[1764940616999,0.73910844,91077.0,91076.0,0.00188284]
[1764940617197,0.8662135,91077.0,91076.0,0.00188284]
[1764940617442,0.72177038,91077.0,91076.0,0.00188284]
[1764940617588,0.73733038,91077.0,91076.0,0.00188284]
[1764940618196,0.71993038,91077.0,91076.0,0.00188284]
[1764940618398,0.37335808,91077.0,91076.0,0.00188284]
[1764940618655,0.27154509,91077.0,91076.0,0.00188284]
[1764940618796,0.06398875,91077.0,91076.0,0.00188284]
[1764940618996,0.024,91077.0,91076.0,0.25902363]
[1764940619243,0.02,91077.0,91076.0,0.0178303]
[1764940619553,0.024,91077.0,91076.0,0.02329427]
[1764940619932,0.024,91077.0,91076.0,0.24289109]
[1764940620136,0.02,91077.0,91076.0,0.24289109]
[1764940620344,0.06252299,91081.0,91079.0,0.23056703]
[1764940620955,0.21958478,91081.0,91079.0,0.23056703]
[1764940621136,0.28210545,91082.0,91079.0,0.23056703]
[1764940621500,0.01097923,91081.0,91078.0,0.23057158]
[1764940621637,0.02727,91079.0,91071.0,0.00612]
[1764940621839,0.23058326,91074.0,91070.0,0.23058947]
[1764940622041,0.23058643,91073.0,91069.0,0.23059273]
[1764940622408,0.01098056,91070.0,91066.0,0.23060061]
[1764940622636,0.21961594,91069.0,91066.0,0.23060061]
[1764940622777,0.23059398,91071.0,91069.0,0.21961369]
[1764940622979,0.0109802,91073.0,91069.0,0.21961369]
[1764940623184,0.01097984,91076.0,91072.0,0.02216]
[1764940623353,0.01097935,91080.0,91074.0,0.02150397]
[1764940623553,0.02744899,91078.0,91075.0,0.01097996]
[1764940623750,0.02739291,91076.0,91073.0,0.21959947]
[1764940624003,0.28215115,91063.0,91050.0,0.21965884]
[1764940624309,0.28215115,91063.0,91051.0,0.21965639]
[1764940624310,0.31103402,91063.0,91051.0,0.21965639]
[1764940624509,0.33594402,91063.0,91052.0,0.01098273]
[1764940624740,0.33594402,91063.0,91047.0,0.23064912]
[1764940624912,0.33594402,91063.0,91045.0,0.01098357]
[1764940625873,0.33594402,91063.0,91062.0,0.00260121]
[1764940626145,0.33694402,91063.0,91062.0,0.00260121]
[1764940626526,0.34394402,91063.0,91062.0,0.00260121]
[1764940626706,0.33694402,91063.0,91062.0,0.00260121]
[1764940626911,0.31203402,91063.0,91062.0,0.00260121]
[1764940627111,0.32703402,91063.0,91062.0,0.00260121]
[1764940627435,0.32603402,91063.0,91062.0,0.00260121]
[1764940627680,0.04388287,91063.0,91062.0,0.00260121]
[1764940627872,0.03188287,91063.0,91062.0,0.00260121]
[1764940628252,0.03988287,91063.0,91062.0,0.00260121]
[1764940628489,0.03688287,91063.0,91062.0,0.00260121]
[1764940628675,0.03788287,91063.0,91062.0,0.00260121]
[1764940628911,0.009,91063.0,91062.0,0.04014518]
[1764940629205,0.009,91063.0,91062.0,0.06226518]
[1764940629939,0.001,91063.0,91062.0,0.06226518]
[1764940630144,0.001,91063.0,91062.0,0.25977576]
[1764940630346,0.003,91063.0,91062.0,0.25977576]
[1764940630748,0.003,91063.0,91062.0,0.22223179]
[1764940631114,0.001,91063.0,91062.0,0.22223179]
[1764940631442,0.230602,91066.0,91063.0,0.21962788]
[1764940631443,0.01098104,91066.0,91063.0,0.21962788]
[1764940631599,0.01098104,91066.0,91063.0,0.23060928]
[1764940632027,0.21962816,91063.0,91062.0,0.00039869]
[1764940632224,0.29771115,91063.0,91062.0,0.00039869]
[1764940632397,0.32423402,91063.0,91062.0,0.00039869]
[1764940632601,0.34163402,91063.0,91062.0,0.00039869]
[1764940632955,0.36521916,91063.0,91062.0,0.00039869]
[1764940633513,0.68821916,91063.0,91062.0,0.00039869]
[1764940633737,0.74950526,91063.0,91062.0,0.00039869]
[1764940633955,0.72005235,91063.0,91062.0,0.00039869]
[1764940634165,0.69845235,91063.0,91062.0,0.00039869]
[1764940634526,0.70205235,91063.0,91062.0,0.00039869]
[1764940634732,0.68821916,91063.0,91062.0,0.00039869]
[1764940634929,0.70245013,91063.0,91062.0,0.00039869]
[1764940635137,0.72545013,91063.0,91062.0,0.00039869]
[1764940635342,0.71121916,91063.0,91062.0,0.00039869]
[1764940635718,0.83515299,91063.0,91062.0,0.00039869]
[1764940636337,0.81775299,91063.0,91062.0,0.00039869]
[1764940636473,0.80752422,91063.0,91062.0,0.00039869]
[1764940636680,0.69221916,91063.0,91062.0,0.00039869]
[1764940636924,0.69221916,91063.0,91062.0,0.00139869]
[1764940637130,0.71321916,91063.0,91062.0,0.00139869]
[1764940637329,0.69581916,91063.0,91062.0,0.00360121]
[1764940637530,0.71321916,91063.0,91062.0,0.00360121]
[1764940640242,0.82288516,91063.0,91062.0,0.00360121]
[1764940640459,0.84448516,91063.0,91062.0,0.00360121]
[1764940640847,0.21972709,91022.0,91021.0,0.02150397]
[1764940641051,0.21972468,91023.0,91021.0,0.02190186]
[1764940642049,0.21972709,91022.0,91021.0,0.00039789]
[1764940642476,0.23528709,91022.0,91021.0,0.00039789]
[1764940642731,0.24241765,91025.0,91021.0,0.00039789]
[1764940642931,0.01098526,91031.0,91027.0,0.01098575]
[1764940643137,0.01098551,91029.0,91026.0,0.23070234]
[1764940643375,0.23069316,91030.0,91027.0,0.2386989]
[1764940643549,0.23068289,91035.0,91027.0,0.2386989]
[1764940643550,0.0109849,91034.0,91031.0,0.01098526]
[1764940643750,0.0109849,91034.0,91033.0,0.02150397]
[1764940643950,0.23068311,91034.0,91033.0,0.02150397]
[1764940644177,0.23068311,91034.0,91021.0,0.01138436]
[1764940644178,0.01098599,91025.0,91021.0,0.01138436]
[1764940644539,0.21972709,91022.0,91021.0,0.00139789]
[1764940644744,0.23143709,91022.0,91021.0,0.00139789]
[1764940644917,0.24699709,91022.0,91021.0,0.00139789]
[1764940645117,0.24699709,91022.0,91021.0,0.00039789]
[1764940645343,0.01171,91022.0,91021.0,0.00139789]
[1764940645866,0.33505295,91022.0,91021.0,0.00039789]
[1764940646068,0.30899008,91022.0,91021.0,0.00039789]
[1764940646271,0.32135299,91022.0,91021.0,0.00039789]
[1764940646493,0.32135299,91022.0,91021.0,0.00160532]
[1764940647310,0.23843709,91022.0,91021.0,0.00160532]
[1764940647838,0.24746709,91022.0,91021.0,0.00160532]
[1764940648037,0.25346709,91022.0,91021.0,0.00160532]
[1764940648239,0.0268,91022.0,91021.0,0.01825532]
[1764940648502,0.0268,91022.0,91021.0,0.2594888]
[1764940648977,0.0268,91022.0,91021.0,0.23798483]
[1764940649152,0.0268,91022.0,91021.0,0.2428388]
[1764940649358,0.0268,91022.0,91021.0,0.00160532]
[1764940649520,0.24652709,91022.0,91021.0,0.00160532]
[1764940649933,0.26155709,91022.0,91021.0,0.00160532]
[1764940650375,0.28600709,91022.0,91021.0,0.00160532]
[1764940650583,0.26155709,91022.0,91021.0,0.00160532]
[1764940650740,0.0268,91022.0,91021.0,0.02310929]
[1764940650937,0.0268,91022.0,91021.0,0.2594888]
[1764940651135,0.0268,91022.0,91021.0,0.03975929]
[1764940651383,0.0268,91022.0,91021.0,0.2594888]
[1764940652180,0.24652709,91022.0,91021.0,0.02310929]
[1764940652375,0.0268,91022.0,91021.0,0.02310929]
[1764940654000,0.0268,91022.0,91021.0,0.00160532]
[1764940654942,0.24652709,91022.0,91021.0,0.00160532]
[1764940655323,0.0268,91022.0,91021.0,0.00160532]
[1764940655547,0.24652709,91022.0,91021.0,0.00160532]
[1764940655952,0.26155709,91022.0,91021.0,0.00160532]
[1764940656306,0.28600709,91022.0,91021.0,0.00160532]
[1764940658776,0.0268,91022.0,91021.0,0.02310929]
[1764940658924,0.0268,91022.0,91021.0,0.2428388]
[1764940660110,0.0268,91022.0,91021.0,0.2816088]
[1764940660328,0.0268,91022.0,91021.0,2.6046088]
[1764940660518,0.0268,91022.0,91021.0,2.1492588]
[1764940661242,0.0208,91022.0,91021.0,2.1492588]
[1764940661447,0.0208,91022.0,91021.0,2.1202988]
[1764940661783,0.0228,91022.0,91021.0,1.9195128]
[1764940662560,0.21963008,91063.0,91059.0,0.02150397]
[1764940662766,0.01098152,91062.0,91059.0,0.25212298]
[1764940662963,0.00161287,91063.0,91060.0,0.02204177]
[1764940663168,0.00161287,91063.0,91062.0,0.21963058]
[1764940663376,0.06413586,91063.0,91061.0,0.21963299]
[1764940663580,0.02601152,91062.0,91059.0,0.02150397]
[1764940663779,0.21963299,91061.0,91059.0,0.02156949]
[1764940664235,0.02601152,91062.0,91059.0,0.02156949]
[1764940664236,0.01098152,91062.0,91059.0,0.02156949]
[1764940664480,0.00261287,91063.0,91061.0,0.21963065]
[1764940664659,0.01161287,91063.0,91061.0,0.23628065]
[1764940664869,0.00261287,91063.0,91061.0,0.23628065]
[1764940665900,0.21960172,91074.0,91061.0,0.23628065]
[1764940665901,0.01098008,91074.0,91070.0,0.01098056]
[1764940666079,0.242528,91076.0,91072.0,0.23058586]
[1764940666255,0.23058083,91075.0,91072.0,0.01098032]
[1764940666422,0.06252299,91074.0,91072.0,0.23058618]
[1764940666618,0.06252299,91074.0,91071.0,0.02150397]
[1764940666619,0.21960473,91073.0,91071.0,0.02150397]
[1764940666840,0.21961128,91070.0,91069.0,0.01106]
[1764940668162,0.001,91074.0,91071.0,0.23058663]
[1764940668365,0.001,91074.0,91072.0,0.2411096]
[1764940668766,0.001,91074.0,91073.0,0.01581]
[1764940668982,0.001,91074.0,91073.0,0.07683397]
[1764940669381,0.01,91074.0,91073.0,0.07683397]
[1764940669583,0.009,91074.0,91073.0,0.07683397]
[1764940670122,0.009,91074.0,91073.0,0.05533]
[1764940670339,0.009,91074.0,91073.0,0.07683397]
[1764940670540,0.02739291,91086.0,91083.0,0.01097899]
[1764940670771,0.02739291,91086.0,91084.0,0.21957753]
[1764940671615,0.01532,91085.0,91084.0,0.21957753]
[1764940671810,0.02739291,91086.0,91084.0,0.21957753]
[1764940672451,0.02939291,91086.0,91083.0,0.23055872]
[1764940672572,0.04739291,91086.0,91084.0,0.002]
[1764940672768,0.04539291,91086.0,91084.0,0.22157661]
[1764940673199,0.04739291,91086.0,91084.0,0.22157661]
[1764940673664,0.02939291,91086.0,91084.0,0.21957661]
[1764940674092,0.04739291,91086.0,91084.0,0.21957661]
[1764940674306,0.02939291,91086.0,91084.0,0.21957661]
[1764940674650,0.04739291,91086.0,91084.0,0.002]
[1764940675524,0.21957512,91085.0,91084.0,0.002]
[1764940676663,0.22057512,91085.0,91084.0,0.002]
[1764940676861,0.26302799,91085.0,91084.0,0.002]
[1764940677528,0.26302799,91085.0,91072.0,0.21960593]
[1764940677529,0.23055934,91083.0,91080.0,0.23056651]
[1764940677834,0.23055654,91084.0,91081.0,0.23056311]
[1764940678045,0.01259174,91084.0,91082.0,0.21958192]
[1764940678176,0.02906006,91084.0,91083.0,0.21957994]
[1764940678379,0.02906006,91084.0,91083.0,0.25655391]
[1764940678380,0.00161287,91084.0,91083.0,0.25655391]
[1764940678808,0.00161287,91084.0,91083.0,0.24108391]
[1764940679009,0.01461287,91084.0,91083.0,0.24108391]
[1764940679200,0.00161287,91084.0,91083.0,0.24108391]
[1764940679435,0.00261287,91084.0,91083.0,0.24108391]
[1764940679630,0.01661287,91084.0,91083.0,0.24308391]
[1764940682670,0.01661287,91084.0,91083.0,0.28067391]
[1764940682671,0.015,91084.0,91083.0,0.28067391]
[1764940683540,0.21951169,91112.0,91083.0,0.28067391]
[1764940683541,0.01152,91125.0,91122.0,0.01097429]
[1764940683760,0.01152,91125.0,91115.0,0.01097514]
[1764940683761,0.01097429,91122.0,91113.0,0.21950745]
[1764940683980,0.01097646,91104.0,91094.0,0.21955176]
[1764940684194,0.01648,91095.0,91094.0,0.21955342]
[1764940684402,0.01648,91095.0,91086.0,0.21957128]
[1764940684606,0.01648,91087.0,91086.0,0.21957271]
[1764940684810,0.01152,91090.0,91088.0,0.21956789]
[1764940685043,0.01097682,91101.0,91097.0,0.21954452]
[1764940685247,0.01097682,91101.0,91099.0,0.21954095]
[1764940685454,0.21953896,91100.0,91097.0,0.02150397]
[1764940685654,0.01097682,91101.0,91098.0,0.21954371]
[1764940685857,0.219539,91100.0,91098.0,0.21954371]
[1764940686106,0.21954305,91099.0,91097.0,0.02150397]
[1764940686308,0.21954378,91098.0,91097.0,0.02150397]
[1764940686538,0.0109773,91097.0,91096.0,0.02150397]
[1764940686739,0.21955932,91092.0,91089.0,0.23054249]
[1764940686952,0.01097743,91096.0,91093.0,0.24105977]
[1764940687125,0.01152,91097.0,91094.0,0.23052981]
[1764940687334,0.01152,91097.0,91096.0,0.2195486]
[1764940687532,0.01152,91097.0,91095.0,0.21955089]
[1764940687770,0.23106652,91097.0,91095.0,0.21955089]
[1764940687904,0.21955117,91095.0,91093.0,0.03248176]
[1764940688260,0.23552721,91096.0,91093.0,0.03348176]
[1764940688462,0.23052721,91096.0,91093.0,0.03248176]
[1764940688669,0.21955223,91095.0,91093.0,0.02150397]
[1764940688875,0.23052721,91096.0,91095.0,0.001]
[1764940689079,0.23052721,91096.0,91093.0,0.25203751]
[1764940689222,0.21955109,91095.0,91093.0,0.02150397]
[1764940689435,0.21955109,91095.0,91093.0,0.02250397]
[1764940689840,0.23552721,91096.0,91093.0,0.02250397]
[1764940690750,0.0109767,91102.0,91099.0,0.01097706]
[1764940690962,0.02249658,91103.0,91100.0,0.23051543]
[1764940691174,0.01152,91103.0,91101.0,0.21953606]